fUSD/lending_fUSD_20251109
["ID","MTS","AMOUNT","RATE_DAILY","PERIOD"]
[393465321,1762689054496,-649.096421,0.000229,7]
[393465322,1762689054506,-241.372738,0.000229,7]
[393465323,1762689054516,-649.096421,0.000229,7]
[393465324,1762689054527,-241.372738,0.000229,7]
[393465325,1762689054537,-241.372738,0.000229,7]
[393465326,1762689054547,-151.0,0.000229,7]
[393465327,1762689054557,-151.0,0.000229,7]
[393465328,1762689054570,-182.828569,0.000229,7]
[393465329,1762689054580,-176.311602,0.000229,7]
[393465330,1762689054590,-176.311602,0.000229,7]
[393465331,1762689054601,-151.0,0.000229,7]
[393465332,1762689054612,-176.311602,0.000229,7]
[393465333,1762689054622,-266.930809,0.000229,5]
[393465334,1762689054632,-176.311602,0.000229,7]
[393465335,1762689054643,-153.686509,0.000229,7]
[393465336,1762689054653,-151.0,0.000229,7]
[393465337,1762689054664,-170.468976,0.000229,7]
[393465338,1762689054675,-170.468976,0.000229,7]
[393465339,1762689054689,-151.0,0.000229,7]
[393465340,1762689054708,-170.468976,0.000229,7]
[393465341,1762689054718,-170.468976,0.000229,7]
[393465342,1762689054729,-151.0,0.000229,7]
[393465343,1762689054739,-154.628871,0.000229,7]
[393465344,1762689054749,-154.628871,0.000229,7]
[393465345,1762689054761,-154.628871,0.000229,7]
[393465346,1762689054778,-151.0,0.000229,7]
[393465347,1762689054791,-2567.176262,0.000229,7]
[393465348,1762689054803,-154.628871,0.000229,7]
[393465349,1762689054814,-696.053668,0.000229,7]
[393465350,1762689054825,-151.0,0.000229,7]
[393465351,1762689054836,-191.059476,0.000229,7]
[393465352,1762689054846,-2567.176262,0.000229,7]
[393465353,1762689054856,-696.053668,0.000229,7]
[393465354,1762689054867,-191.059476,0.000229,7]
[393465355,1762689054878,-2567.176262,0.000229,7]
[393465356,1762689054888,-696.053668,0.000229,7]
[393465357,1762689054898,-191.059476,0.000229,7]
[393465358,1762689054908,-696.053668,0.000229,7]
[393465359,1762689054921,-2567.176262,0.000229,7]
[393465360,1762689054938,-336.546776,0.000229,7]
[393465361,1762689054949,-179.392415,0.000229,7]
[393465362,1762689054959,-191.059476,0.000229,7]
[393465363,1762689054970,-336.546776,0.000229,7]
[393465364,1762689054979,-151.0,0.000229,7]
[393465365,1762689054990,-151.0,0.000229,7]
[393465366,1762689055000,-336.546776,0.000229,7]
[393465367,1762689055010,-336.546776,0.000229,7]
[393465368,1762689055020,-151.0,0.000229,7]
[393465369,1762689055031,-151.0,0.000229,7]
[393465370,1762689055043,-338.9931,0.000229,7]
[393465371,1762689055054,-338.9931,0.000229,7]
[393465372,1762689055067,-298.153219,0.000229,7]
[393465373,1762689055077,-338.9931,0.000229,7]
[393465374,1762689055087,-298.153219,0.000229,7]
[393465375,1762689055097,-338.9931,0.000229,7]
[393465376,1762689055107,-298.153219,0.000229,7]
[393465377,1762689055117,-298.153219,0.000229,7]
[393465378,1762689055128,-151.0,0.000229,7]
[393465379,1762689055138,-151.0,0.000229,7]
[393465380,1762689055150,-151.0,0.000229,7]
[393465381,1762689055161,-151.0,0.000229,7]
[393465382,1762689055171,-995.65575,0.000229,7]
[393465383,1762689055181,-151.0,0.000229,7]
[393465384,1762689055191,-151.0,0.000229,7]
[393465385,1762689055200,-995.65575,0.000229,7]
[393465386,1762689055210,-995.65575,0.000229,7]
[393465387,1762689055220,-995.65575,0.000229,7]
[393465388,1762689055317,-1031.362102,0.000229,7]
[393465389,1762689055328,-500.0,0.00022959,2]
[393465390,1762689055339,-628.37975426,0.00023,7]
[393465391,1762689055349,-435.60836925,0.00023,2]
[393465392,1762689055360,-997.88219368,0.00023,2]
[393465393,1762689055373,-400.0,0.00023,2]
[393465394,1762689055384,-164.0,0.00023014,7]
[393465395,1762689055395,-698.95,0.00023023,2]
[393465396,1762689055405,-477.41,0.00023023,2]
[393465397,1762689055415,-162.57231788,0.00023089,2]
[393465398,1762689055426,-1000.0,0.00023092,2]
[393465399,1762689055437,-2560.76924219,0.000231,2]
[393465400,1762689055447,-200.0,0.000231,2]
[393465401,1762689055456,-150.0,0.00023112,2]
[393465402,1762689055467,-150.0,0.00023112,2]
[393465403,1762689055477,-151.49,0.00023112,2]
[393465404,1762689055487,-150.0,0.00023112,2]
[393465405,1762689055496,-150.0,0.00023112,2]
[393465406,1762689055507,-150.0,0.00023112,2]
[393465407,1762689055518,-150.0,0.00023112,2]
[393465408,1762689055527,-150.0,0.00023112,2]
[393465409,1762689055538,-150.0,0.00023112,2]
[393465410,1762689055547,-150.0,0.00023112,2]
[393465411,1762689055557,-151.0,0.00023199,7]
[393465412,1762689055567,-151.0,0.00023199,7]
[393465413,1762689055577,-151.0,0.00023199,7]
[393465414,1762689055587,-151.0,0.00023199,7]
[393465415,1762689055596,-151.0,0.00023199,7]
[393465416,1762689055606,-151.0,0.00023199,7]
[393465417,1762689055616,-151.0,0.00023199,7]
[393465418,1762689055626,-151.0,0.00023199,7]
[393465419,1762689055635,-281.014401,0.00023199,7]
[393465420,1762689055645,-666.0,0.00023199,2]
[393465421,1762689055655,-1206.23,0.00023199,2]
[393465422,1762689055664,-1206.23,0.00023199,2]
[393465423,1762689055673,-1206.23,0.00023199,2]
[393465424,1762689055682,-739.03,0.00023199,2]
[393465425,1762689055691,-51668.18922415,0.000232,2]
[393465426,1762689055700,-151.0,0.000232,7]
[393465427,1762689055709,-151.0,0.000232,7]
[393465428,1762689055719,-151.0,0.000232,7]
[393465429,1762689055728,-151.0,0.000232,7]
[393465430,1762689055737,-151.0,0.000232,7]
[393465431,1762689055747,-153.443058,0.000232,7]
[393465432,1762689055756,-151.0,0.000232,7]
[393465433,1762689055770,-172.097018,0.000232,7]
[393465434,1762689055779,-161.189237,0.000232,7]
[393465435,1762689055788,-285.070842,0.000232,7]
[393465436,1762689055797,-151.0,0.000232,7]
[393465437,1762689055807,-151.0,0.000232,7]
[393465438,1762689055817,-151.0,0.000232,7]
[393465439,1762689055827,-151.0,0.000232,7]
[393465440,1762689055837,-203.451697,0.000232,7]
[393465441,1762689055847,-154.182677,0.000232,7]
[393465442,1762689055856,-151.0,0.000232,7]
[393465443,1762689055866,-151.0,0.000232,7]
[393465444,1762689055876,-151.0,0.000232,7]
[393465445,1762689055886,-151.0,0.000232,7]
[393465446,1762689055896,-151.0,0.000232,7]
[393465447,1762689055906,-151.0,0.000232,7]
[393465448,1762689055916,-151.0,0.000232,7]
[393465449,1762689055927,-151.0,0.000232,7]
[393465450,1762689055936,-161.845655,0.000232,7]
[393465451,1762689055946,-151.0,0.000232,7]
[393465452,1762689055968,-233.507189,0.000232,7]
[393465453,1762689055978,-151.0,0.000232,7]
[393465454,1762689055988,-151.0,0.000232,7]
[393465455,1762689055997,-151.0,0.000232,7]
[393465456,1762689056007,-151.0,0.000232,7]
[393465457,1762689056016,-151.0,0.000232,7]
[393465458,1762689056026,-151.0,0.000232,7]
[393465459,1762689056035,-151.0,0.000232,7]
[393465460,1762689056045,-174.561151,0.000232,7]
[393465461,1762689056055,-151.0,0.000232,7]
[393465462,1762689056065,-151.0,0.000232,7]
[393465463,1762689056075,-151.0,0.000232,7]
[393465464,1762689056084,-175.642331,0.000232,7]
[393465465,1762689056093,-151.0,0.000232,7]
[393465466,1762689056103,-151.0,0.000232,7]
[393465467,1762689056112,-151.0,0.000232,7]
[393465468,1762689056122,-151.0,0.000232,7]
[393465469,1762689056131,-151.0,0.000232,7]
[393465470,1762689056141,-151.0,0.000232,7]
[393465471,1762689056151,-151.0,0.000232,7]
[393465472,1762689056160,-151.0,0.000232,7]
[393465473,1762689056173,-159.764693,0.000232,7]
[393465474,1762689056183,-151.0,0.000232,7]
[393465475,1762689056192,-151.0,0.000232,7]
[393465476,1762689056202,-151.0,0.000232,7]
[393465477,1762689056211,-151.0,0.000232,7]
[393465478,1762689056221,-151.0,0.000232,7]
[393465479,1762689056231,-151.0,0.000232,7]
[393465480,1762689056240,-151.0,0.000232,7]
[393465481,1762689056250,-151.0,0.000232,7]
[393465482,1762689056259,-151.0,0.000232,7]
[393465483,1762689056269,-180.274308,0.000232,7]
[393465484,1762689056278,-154.687613,0.000232,7]
[393465485,1762689056288,-151.0,0.000232,7]
[393465486,1762689056297,-151.0,0.000232,7]
[393465487,1762689056307,-193.40642,0.000232,7]
[393465488,1762689056316,-151.0,0.000232,7]
[393465489,1762689056326,-151.0,0.000232,7]
[393465490,1762689056335,-151.0,0.000232,7]
[393465491,1762689056345,-151.0,0.000232,7]
[393465492,1762689056354,-151.0,0.000232,7]
[393465493,1762689056367,-151.0,0.000232,7]
[393465494,1762689056381,-176.178797,0.000232,7]
[393465495,1762689056395,-168.329479,0.000232,7]
[393465496,1762689056405,-151.0,0.000232,7]
[393465497,1762689056415,-151.0,0.000232,7]
[393465498,1762689056424,-151.0,0.000232,7]
[393465499,1762689056434,-151.0,0.000232,7]
[393465500,1762689056445,-151.0,0.000232,7]
[393465501,1762689056454,-261.702404,0.000232,7]
[393465502,1762689056463,-212.837481,0.000232,7]
[393465503,1762689056473,-151.0,0.000232,7]
[393465504,1762689056483,-212.837481,0.000232,7]
[393465505,1762689056492,-212.837481,0.000232,7]
[393465506,1762689056502,-212.837481,0.000232,7]
[393465507,1762689056512,-151.0,0.000232,7]
[393465508,1762689056522,-266.888997,0.000232,7]
[393465509,1762689056532,-163.679375,0.000232,7]
[393465510,1762689056542,-151.0,0.000232,7]
[393465511,1762689056552,-153.618254,0.000232,7]
[393465512,1762689056561,-153.618254,0.000232,7]
[393465513,1762689056573,-153.618254,0.000232,7]
[393465514,1762689056583,-153.618254,0.000232,7]
[393465515,1762689056593,-151.0,0.000232,7]
[393465516,1762689056602,-151.0,0.000232,7]
[393465517,1762689056611,-151.0,0.000232,7]
[393465518,1762689056621,-151.0,0.000232,7]
[393465519,1762689056631,-151.0,0.000232,7]
[393465520,1762689056641,-151.0,0.000232,7]
[393465521,1762689056650,-214.43224,0.000232,7]
[393465522,1762689056660,-214.43224,0.000232,7]
[393465523,1762689056756,-151.0,0.000232,7]
[393465524,1762689056766,-151.0,0.000232,7]
[393465525,1762689056775,-214.43224,0.000232,7]
[393465526,1762689056784,-214.43224,0.000232,7]
[393465527,1762689056793,-151.0,0.000232,7]
[393465528,1762689056803,-151.0,0.000232,7]
[393465529,1762689056812,-151.0,0.000232,7]
[393465530,1762689056822,-151.0,0.000232,7]
[393465531,1762689056833,-151.0,0.000232,7]
[393465532,1762689056849,-151.0,0.000232,7]
[393465533,1762689056858,-151.0,0.000232,7]
[393465534,1762689056867,-206.496713,0.000232,7]
[393465535,1762689056876,-206.496713,0.000232,7]
[393465536,1762689056885,-206.496713,0.000232,7]
[393465537,1762689056894,-206.496713,0.000232,7]
[393465538,1762689056904,-151.0,0.000232,7]
[393465539,1762689056913,-151.0,0.000232,7]
[393465540,1762689056923,-151.0,0.000232,7]
[393465541,1762689056943,-151.0,0.000232,7]
[393465542,1762689056954,-1316.0,0.0002328,2]
[393465543,1762689056964,-3425.0,0.0002328,2]
[393465544,1762689056974,-608.0,0.0002328,2]
[393465545,1762689056985,-574.0,0.0002328,2]
[393465546,1762689056995,-820.0,0.0002328,2]
[393465547,1762689057005,-1596.0,0.0002328,2]
[393465548,1762689057014,-1273.0,0.0002328,2]
[393465549,1762689057024,-813.0,0.0002328,2]
[393465550,1762689057034,-559.0,0.0002328,2]
[393465551,1762689057044,-6661.0,0.0002328,2]
[393465552,1762689057054,-6478.0,0.0002328,2]
[393465553,1762689057063,-2142.0,0.0002328,2]
[393465554,1762689057076,-500.0,0.00023288,2]
[393465555,1762689057085,-282.41486979,0.00023312,2]
[393465556,1762689057096,-305.91,0.00023388,2]
[393465557,1762689057105,-500.0,0.00023425,2]
[393465558,1762689057115,-1231.17535914,0.00023499,2]
[393465559,1762689057131,-200.0,0.000235,2]
[393465560,1762689057140,-187.05498475,0.000235,2]
[393465561,1762689057151,-357.82697939,0.00023562,2]
[393465562,1762689057161,-1613.0,0.00023565,2]
[393465563,1762689057172,-16723.59,0.000236,7]
[393465564,1762689057181,-151.0,0.000236,7]
[393465565,1762689057191,-247.632773,0.000236,7]
[393465566,1762689057201,-151.0,0.000236,7]
[393465567,1762689057211,-156.131667,0.000236,7]
[393465568,1762689057222,-151.0,0.000236,7]
[393465569,1762689057231,-151.0,0.000236,7]
[393465570,1762689057241,-151.0,0.000236,7]
[393465571,1762689057251,-151.0,0.000236,7]
[393465572,1762689057260,-151.0,0.000236,7]
[393465573,1762689057270,-671.15214123,0.00023761,2]
[393465574,1762689057279,-302009.9633199,0.00023762,2]
[393465575,1762689057289,-151.0,0.00023762,7]
[393465576,1762689057300,-151.0,0.00023762,7]
[393465577,1762689057311,-151.0,0.00023762,7]
[393465578,1762689057323,-151.0,0.00023762,7]
[393465579,1762689057332,-151.0,0.00023762,7]
[393465580,1762689057342,-151.0,0.00023762,7]
[393465581,1762689057351,-151.0,0.00023762,7]
[393465582,1762689057362,-151.0,0.00023762,7]
[393465583,1762689057374,-151.0,0.00023762,7]
[393465584,1762689057383,-151.0,0.00023762,7]
[393465585,1762689057393,-151.0,0.00023762,7]
[393465586,1762689057403,-151.0,0.00023762,7]
[393465587,1762689057413,-151.0,0.00023762,7]
[393465588,1762689057422,-151.0,0.00023762,7]
[393465589,1762689057433,-161.133918,0.00023762,7]
[393465590,1762689057444,-151.0,0.00023762,7]
[393465591,1762689057454,-160.983158,0.00023762,7]
[393465592,1762689057464,-151.0,0.00023762,7]
[393465593,1762689057474,-151.0,0.00023762,7]
[393465594,1762689057483,-151.0,0.00023762,7]
[393465595,1762689057493,-181.665505,0.00023762,7]
[393465596,1762689057503,-151.0,0.00023762,7]
[393465597,1762689057512,-181.665505,0.00023762,7]
[393465598,1762689057522,-153.227742,0.00023762,7]
[393465599,1762689057532,-151.0,0.00023762,7]
[393465600,1762689057542,-181.665505,0.00023762,7]
[393465601,1762689057551,-153.227742,0.00023762,7]
[393465602,1762689057561,-181.665505,0.00023762,7]
[393465603,1762689057572,-151.0,0.00023762,7]
[393465604,1762689057582,-153.227742,0.00023762,7]
[393465605,1762689057592,-153.227742,0.00023762,7]
[393465606,1762689057602,-151.0,0.00023762,7]
[393465607,1762689057611,-151.0,0.00023762,7]
[393465608,1762689057621,-151.0,0.00023762,7]
[393465609,1762689057631,-151.0,0.00023762,7]
[393465610,1762689057640,-151.0,0.00023762,7]
[393465611,1762689057650,-151.0,0.00023762,7]
[393465612,1762689057659,-151.0,0.00023762,7]
[393465613,1762689057669,-151.0,0.00023762,7]
[393465614,1762689057678,-151.0,0.00023762,7]
[393465615,1762689057688,-158.108052,0.00023762,7]
[393465616,1762689057697,-218.072031,0.00023762,7]
[393465617,1762689057707,-151.0,0.00023762,7]
[393465618,1762689057716,-151.0,0.00023762,7]
[393465619,1762689057725,-270.428426,0.00023762,7]
[393465620,1762689057735,-151.0,0.00023762,7]
[393465621,1762689057750,-151.0,0.00023762,7]
[393465622,1762689057760,-720.147493,0.00023762,7]
[393465623,1762689057770,-151.0,0.00023762,7]
[393465624,1762689057780,-720.147493,0.00023762,7]
[393465625,1762689057790,-151.0,0.00023762,7]
[393465626,1762689057799,-151.99265,0.00023762,7]
[393465627,1762689057809,-720.147493,0.00023762,7]
[393465628,1762689057819,-151.0,0.00023762,7]
[393465629,1762689057829,-720.147493,0.00023762,7]
[393465630,1762689057838,-177.659509,0.00023762,7]
[393465631,1762689057847,-151.0,0.00023762,7]
[393465632,1762689057857,-151.0,0.00023762,7]
[393465633,1762689057867,-151.0,0.00023762,7]
[393465634,1762689057876,-151.0,0.00023762,7]
[393465635,1762689057885,-158.704062,0.00023762,7]
[393465636,1762689057895,-151.0,0.00023762,7]
[393465637,1762689057904,-178.888518,0.00023762,7]
[393465638,1762689057913,-151.0,0.00023762,7]
[393465639,1762689057923,-151.0,0.00023762,7]
[393465640,1762689057932,-151.0,0.00023762,7]
[393465641,1762689057941,-187.260727,0.00023762,7]
[393465642,1762689057951,-187.260727,0.00023762,7]
[393465643,1762689057960,-187.260727,0.00023762,7]
[393465644,1762689057969,-168.644288,0.00023762,7]
[393465645,1762689057979,-187.260727,0.00023762,7]
[393465646,1762689057988,-151.0,0.00023762,7]
[393465647,1762689058095,-151.0,0.00023762,7]
[393465648,1762689058105,-281.786286,0.00023762,7]
[393465649,1762689058114,-151.0,0.00023762,7]
[393465650,1762689058123,-281.786286,0.00023762,7]
[393465651,1762689058132,-158.424085,0.00023762,7]
[393465652,1762689058142,-166.784343,0.00023762,7]
[393465653,1762689058151,-281.786286,0.00023762,7]
[393465654,1762689058160,-158.424085,0.00023762,7]
[393465655,1762689058170,-281.786286,0.00023762,7]
[393465656,1762689058179,-158.424085,0.00023762,7]
[393465657,1762689058188,-166.784343,0.00023762,7]
[393465658,1762689058198,-255.720552,0.00023762,7]
[393465659,1762689058207,-151.0,0.00023762,7]
[393465660,1762689058216,-151.0,0.00023762,7]
[393465661,1762689058225,-158.424085,0.00023762,7]
[393465662,1762689058235,-151.0,0.00023762,7]
[393465663,1762689058245,-166.784343,0.00023762,7]
[393465664,1762689058254,-255.720552,0.00023762,7]
[393465665,1762689058264,-151.0,0.00023762,7]
[393465666,1762689058273,-151.0,0.00023762,7]
[393465667,1762689058282,-151.0,0.00023762,7]
[393465668,1762689058291,-151.0,0.00023762,7]
[393465669,1762689058301,-255.720552,0.00023762,7]
[393465670,1762689058310,-156.527692,0.00023762,7]
[393465671,1762689058320,-166.784343,0.00023762,7]
[393465672,1762689058329,-151.0,0.00023762,7]
[393465673,1762689058339,-255.720552,0.00023762,7]
[393465674,1762689058348,-151.0,0.00023762,7]
[393465675,1762689058358,-196.104165,0.00023762,7]
[393465676,1762689058372,-688.396057,0.00023762,7]
[393465677,1762689058381,-688.396057,0.00023762,7]
[393465678,1762689058390,-1926.880093,0.00023762,7]
[393465679,1762689058399,-151.0,0.00023762,7]
[393465680,1762689058410,-688.396057,0.00023762,7]
[393465681,1762689058420,-1926.880093,0.00023762,7]
[393465682,1762689058429,-688.396057,0.00023762,7]
[393465683,1762689058440,-1926.880093,0.00023762,7]
[393465684,1762689058450,-1048.266309,0.00023762,7]
[393465685,1762689058459,-1048.266309,0.00023762,7]
[393465686,1762689058469,-197.743825,0.00023762,7]
[393465687,1762689058478,-1048.266309,0.00023762,7]
[393465688,1762689058488,-151.0,0.00023762,7]
[393465689,1762689058504,-162.295178,0.00023762,7]
[393465690,1762689058513,-1048.266309,0.00023762,7]
[393465691,1762689058523,-151.0,0.00023762,7]
[393465692,1762689058532,-151.0,0.00023762,7]
[393465693,1762689058541,-151.0,0.00023762,7]
[393465694,1762689058551,-150.64,0.00023945,2]
[393465695,1762689058560,-300.0,0.00023945,2]
[393465696,1762689058570,-150.0,0.0002396,2]
[393465697,1762689058583,-150.0,0.0002396,2]
[393465698,1762689058593,-150.0,0.0002396,2]
[393465699,1762689058602,-150.0,0.0002396,2]
[393465700,1762689058612,-150.0,0.0002396,2]
[393465701,1762689058621,-150.0,0.0002396,2]
[393465702,1762689058630,-150.0,0.0002396,2]
[393465703,1762689058639,-150.0,0.0002396,2]
[393465704,1762689058651,-150.0,0.0002396,2]
[393465705,1762689058673,-150.0,0.0002396,2]
[393465706,1762689058692,-300.0,0.00023984,2]
[393465707,1762689058713,-1010.85565826,0.00024,2]
[393465708,1762689058730,-3600.0,0.00024,2]
[393465709,1762689058749,-16051.31326613,0.00024,2]
[393465710,1762689058769,-177.01,0.00024021,2]
[393465711,1762689058788,-177.01,0.00024021,2]
[393465712,1762689058809,-177.01,0.00024021,2]
[393465713,1762689058828,-6453.0,0.0002417,2]
[393465714,1762689058849,-417.65284559,0.0002421,2]
[393465715,1762689058866,-3659.7252829,0.0002421,2]
[393465716,1762689058880,-591.50699756,0.0002465,2]
[393465717,1762689058898,-165.83833122,0.0002465,2]
[393465718,1762689058912,-1000.0,0.00024658,2]
[393465719,1762689058927,-151.0,0.00024658,7]
[393465720,1762689058942,-151.0,0.00024658,7]
[393465721,1762689058956,-151.0,0.00024658,7]
[393465722,1762689058972,-1416.18,0.00024658,2]
[393465723,1762689058986,-166.124503,0.00024658,7]
[393465724,1762689059001,-151.0,0.00024658,7]
[393465725,1762689059016,-151.0,0.00024658,7]
[393465726,1762689059031,-1231.17535914,0.000247,2]
[393465727,1762689059047,-295.884707,0.00024704,7]
[393465728,1762689059062,-151.0,0.00024704,7]
[393465729,1762689059078,-151.0,0.00024704,7]
[393465730,1762689059092,-151.0,0.00024704,7]
[393465731,1762689059107,-151.0,0.00024704,7]
[393465732,1762689059122,-151.0,0.00024704,7]
[393465733,1762689059138,-196.612946,0.00024704,7]
[393465734,1762689059153,-151.0,0.00024704,7]
[393465735,1762689059168,-151.0,0.00024704,7]
[393465736,1762689059183,-151.0,0.00024704,7]
[393465737,1762689059197,-151.0,0.00024704,7]
[393465738,1762689059212,-151.0,0.00024704,7]
[393465739,1762689059227,-151.0,0.00024704,7]
[393465740,1762689059241,-151.0,0.00024704,7]
[393465741,1762689059255,-154.803535,0.00024704,7]
[393465742,1762689059270,-151.0,0.00024704,7]
[393465743,1762689059285,-151.0,0.00024704,7]
[393465744,1762689059299,-151.677788,0.00024704,7]
[393465745,1762689059313,-151.0,0.00024704,7]
[393465746,1762689059328,-151.0,0.00024704,7]
[393465747,1762689059343,-151.0,0.00024704,7]
[393465748,1762689059359,-155.663389,0.00024704,7]
[393465749,1762689059377,-151.0,0.00024704,7]
[393465750,1762689059391,-151.0,0.00024704,7]
[393465751,1762689059406,-151.0,0.00024704,7]
[393465752,1762689059421,-151.0,0.00024704,7]
[393465753,1762689059436,-151.0,0.00024704,7]
[393465754,1762689059452,-151.0,0.00024704,7]
[393465755,1762689059470,-151.0,0.00024704,7]
[393465756,1762689059485,-151.0,0.00024704,7]
[393465757,1762689059500,-151.0,0.00024704,7]
[393465758,1762689059515,-151.0,0.00024704,7]
[393465759,1762689059531,-161.290265,0.00024704,7]
[393465760,1762689059546,-151.0,0.00024704,7]
[393465761,1762689059670,-151.0,0.00024704,7]
[393465762,1762689059679,-151.0,0.00024704,7]
[393465763,1762689059689,-288.94397892,0.00024704,7]
[393465764,1762689059698,-151.0,0.00024704,7]
[393465765,1762689059707,-151.0,0.00024704,7]
[393465766,1762689059716,-151.0,0.00024704,7]
[393465767,1762689059725,-151.0,0.00024704,7]
[393465768,1762689059734,-151.0,0.00024704,7]
[393465769,1762689059743,-151.0,0.00024704,7]
[393465770,1762689059752,-151.0,0.00024704,7]
[393465771,1762689059761,-179.291172,0.00024704,7]
[393465772,1762689059770,-151.0,0.00024704,7]
[393465773,1762689059779,-151.0,0.00024704,7]
[393465774,1762689059789,-151.0,0.00024704,7]
[393465775,1762689059798,-151.0,0.00024704,7]
[393465776,1762689059807,-151.0,0.00024704,7]
[393465777,1762689059816,-151.0,0.00024704,7]
[393465778,1762689059826,-212.837481,0.00024704,7]
[393465779,1762689059835,-151.0,0.00024704,7]
[393465780,1762689059844,-212.837481,0.00024704,7]
[393465781,1762689059853,-212.837481,0.00024704,7]
[393465782,1762689059862,-212.837481,0.00024704,7]
[393465783,1762689059871,-151.0,0.00024704,7]
[393465784,1762689059881,-151.0,0.00024704,7]
[393465785,1762689059891,-153.618254,0.00024704,7]
[393465786,1762689059900,-153.618254,0.00024704,7]
[393465787,1762689059909,-153.618254,0.00024704,7]
[393465788,1762689059918,-153.618254,0.00024704,7]
[393465789,1762689059928,-151.0,0.00024704,7]
[393465790,1762689059937,-151.0,0.00024704,7]
[393465791,1762689059947,-151.0,0.00024704,7]
[393465792,1762689059957,-151.0,0.00024704,7]
[393465793,1762689059967,-151.0,0.00024704,7]
[393465794,1762689059977,-151.0,0.00024704,7]
[393465795,1762689059987,-214.43224,0.00024704,7]
[393465796,1762689059997,-214.43224,0.00024704,7]
[393465797,1762689060007,-151.0,0.00024704,7]
[393465798,1762689060016,-160.562719,0.00024704,7]
[393465799,1762689060025,-214.43224,0.00024704,7]
[393465800,1762689060035,-214.43224,0.00024704,7]
[393465801,1762689060045,-156.672415,0.00024704,7]
[393465802,1762689060055,-151.0,0.00024704,7]
[393465803,1762689060064,-273.112623,0.00024704,7]
[393465804,1762689060075,-274.409551,0.00024704,7]
[393465805,1762689060085,-151.0,0.00024704,7]
[393465806,1762689060095,-151.0,0.00024704,7]
[393465807,1762689060104,-183.538171,0.00024704,7]
[393465808,1762689060114,-206.496713,0.00024704,7]
[393465809,1762689060123,-206.496713,0.00024704,7]
[393465810,1762689060133,-206.496713,0.00024704,7]
[393465811,1762689060142,-206.496713,0.00024704,7]
[393465812,1762689060151,-151.0,0.00024704,7]
[393465813,1762689060162,-151.0,0.00024704,7]
[393465814,1762689060172,-151.0,0.00024704,7]
[393465815,1762689060181,-151.0,0.00024704,7]
[393465816,1762689060191,-151.0,0.00024704,7]
[393465817,1762689060200,-156.007995,0.00024704,7]
[393465818,1762689060210,-4451.081586,0.00024704,7]
[393465819,1762689060221,-151.0,0.00024704,7]
[393465820,1762689060232,-4451.081586,0.00024704,7]